[Event "FRA-ch Teams Top 16-Haute 2022"]
[Site "Chartres"]
[Date "2022.06.19"]
[Round "11.13"]
[White "Terrieux, Kevin"]
[Black "Bauer, Christian"]
[Result "0-1"]
[ECO "E90"]
[WhiteElo "2448"]
[BlackElo "2596"]
[Annotator "TA"]
[PlyCount "68"]
[EventDate "2022.06.16"]
[EventType "team-tourn"]
[EventCountry "FRA"]
[SourceTitle "playchess.com"]
[Source "ChessBase"]
[SourceQuality "1"]
[TimeControl "40/5400+30:1800+30"]

{[%evp 24,68,36,18,8,10,31,17,46,52,62,62,67,53,61,57,77,78,66,64,89,102,85,100,85,72,87,97,133,128,114,84,122,112,175,-169,-168,-279,-255,-591,-585,-571,-576,-572,-556,-29998,-29999]} 1. d4 {[%emt 0:00:32]} Nf6 {[%emt 0:00:07]} 2. Nf3 {[%emt 0:00:42]} d6 {[%emt 0:02:47]} 3. c4 {[%emt 0:01:36]} g6 {[%emt 0:00:20]} 4. Nc3 {[%emt 0:01:22]} Bg7 {[%emt 0:00:47]} 5. e4 {[%emt 0:01:30]} O-O {[%emt 0:00:08]} 6. Be2 {[%emt 0:00:13][%cal Bf1e2,Be2d3,Bd3b1][%mdl 32]} c5 {[%emt 0:02:46]} 7. d5 {[%emt 0:00:49]} e6 {[%emt 0:01:00]} 8. O-O {[%emt 0:02:48]} exd5 {[%emt 0:05:25]} 9. exd5 {[%emt 0:00:29]} Re8 {[%emt 0:00:51]} 10. h3 {[%emt 0:18:34]} Na6 {[%emt 0:15:04]} 11. Bd3 {[%emt 0:07:05]} Nc7 {[%emt 0:09:33]} 12. a4 {[%emt 0:00:48]} Na6 {[%emt 0:02:29]} 13. Bf4 {[%emt 0:03:18]} Nb4 {[%emt 0:02:47] E90: King's Indian: Classical: Early deviations and 6 h3.} 14. Bb1 {[%emt 0:01:20]} b6 {[%emt 0:04:40]} 15. Ra3 {[%emt 0:03:58]} Ba6 {[%emt 0:00:42] The position is equal.} 16. Nb5 {[%emt 0:00:24] [#]} Nh5 $146 {[%emt 0:05:19][%csl LRb2,LRf4]} ({Predecessor:} 16... Ne4 17. Re3 f5 18. Bxe4 Rxe4 19. Rxe4 fxe4 20. Ng5 Bxb5 21. axb5 Nd3 22. Ne6 Qf6 23. Bxd6 {1-0 (40) Ziese,G (2052)-Dexter,D (2217) Leipzig 2011}) 17. Bg5 {[%emt 0:00:29]} Qd7 {[%emt 0:03:45]} 18. Qd2 {[%emt 0:03:13]} f5 {[%emt 0:02:31] Prevents g4.} 19. Bh6 {[%emt 0:18:31]} Bxb5 {[%emt 0:04:34]} 20. axb5 {[%emt 0:00:20]} Bxh6 {[%emt 0:02:36]} 21. Qxh6 {[%emt 0:00:03]} Re2 {[%emt 0:06:31]} 22. Re1 {[%emt 0:09:53]} Rxe1+ {[%emt 0:09:58]} 23. Nxe1 {[%emt 0:00:08]} Qg7 {[%emt 0:02:04]} 24. Qd2 {[%emt 0:02:03]} Re8 {[%emt 0:01:25] aiming for ...Qd4.} 25. Nf3 {[%emt 0:00:17] Inhibits Qd4.} f4 {[%emt 0:04:51]} 26. Kf1 $1 {[%emt 0:07:47]} Qe7 {[%emt 0:05:17]} 27. h4 {[%emt 0:01:22]} Nf6 {[%emt 0:01:35]} 28. Ng5 $1 {[%emt 0:03:12]} Ng4 {[%emt 0:01:21]} (28... Nh5 $16) 29. Ne6 $4 {[%emt 0:07:02][%mdl 8192]} (29. g3 $1 $18 {[%cal Rg3f4]}) 29... Qxh4 $19 {[%emt 0:01:13] And now ...Qh1+ would win.} 30. Rh3 {[%emt 0:02:08] [#] Against Qh1+} (30. Be4 $142 Nf6 31. Rh3 Nxe4 32. Qe1) 30... Nh2+ $1 {[%emt 0:01:52] Pair of Knights!} 31. Kg1 $2 {[%emt 0:03:20] [#]} (31. Rxh2 {is tougher.} Qxh2 32. Be4) 31... Qxh3 $3 {[%emt 0:00:08][%mdl 512]} 32. Qxf4 {[%emt 0:00:12] [#]} Qg4 {[%emt 0:01:12] ...Qxf4 is the strong threat.} 33. Qf6 {[%emt 0:00:27][%csl Ge6][%cal Rf6g7] [#]} Nf3+ $1 {[%emt 0:00:05]} 34. Kf1 {[%emt 0:00:05][%csl Ge6][%cal Rf6g7]} (34. Qxf3 Qxc4) 34... Qxc4+ {[%emt 0:00:10] Weighted Error Value: White=0.62/Black=0.11 (very precise)} 0-1

[Event "FRA-ch Teams Top 16-Haute 2022"]
[Site "Chartres"]
[Date "2022.06.19"]
[Round "11.14"]
[White "Lagarde, Maxime"]
[Black "Gatineau, Yovann"]
[Result "1-0"]
[ECO "C50"]
[WhiteElo "2628"]
[BlackElo "2367"]
[Annotator "TA"]
[PlyCount "63"]
[EventDate "2022.06.16"]
[EventType "team-tourn"]
[EventCountry "FRA"]
[SourceTitle "playchess.com"]
[Source "ChessBase"]
[SourceQuality "1"]
[TimeControl "40/5400+30:1800+30"]

{[%evp 9,63,11,8,11,17,-10,19,15,16,19,31,23,31,25,30,30,31,33,24,29,30,0,13,0,0,0,5,-27,54,57,45,51,45,64,135,104,135,103,415,405,374,380,625,612,685,486,488,484,491,493,493,477,460,465,449,387]} 1. e4 {[%emt 0:00:05]} e5 {[%emt 0:04:01]} 2. Nf3 {[%emt 0:00:04]} Nc6 {[%emt 0:00:05]} 3. Bc4 {[%emt 0:00:02]} Nf6 {[%emt 0:00:43]} 4. d3 {[%emt 0:00:07]} Bc5 {[%emt 0:00:53]} 5. Nc3 {[%emt 0:00:17]} a6 {[%emt 0:02:06]} 6. a4 {[%emt 0:00:07] C50: Hungarian Defence and Giuoco Pianissimo.} d6 {[%emt 0:02:01]} 7. Be3 $5 {[%emt 0:00:04][%mdl 4] Exploring less charted territory.} Bb4 {[%emt 0:11:49]} 8. O-O {[%emt 0:06:59] The position is equal.} Bxc3 {[%emt 0:02:00]} 9. bxc3 {[%emt 0:00:05]} O-O {[%emt 0:00:25] [#]} 10. Bg5 $146 {[%emt 0:03:28]} ({Predecessor:} 10. a5 h6 11. Qb1 d5 12. exd5 Nxd5 13. Qb3 Nxe3 14. fxe3 Qe7 15. Bd5 Be6 16. Bxe6 Qxe6 17. Qxe6 fxe6 {1-0 (30) Lomasov,S (2541)-Stolyarsky,Y (2193) Ramat Gan 2022}) 10... Be6 {[%emt 0:07:36]} 11. Bb3 {[%emt 0:01:30]} h6 {[%emt 0:05:56]} 12. Bh4 {[%emt 0:00:19]} Qe7 {[%emt 0:06:29]} 13. h3 {[%emt 0:16:28]} Bxb3 {[%emt 0:19:16]} 14. cxb3 {[%emt 0:00:25]} Qe6 {[%emt 0:00:38]} 15. d4 {[%emt 0:04:21]} exd4 {[%emt 0:01:28]} ({Resist} 15... Nxe4 16. d5 Qe8 17. dxc6 $16) 16. cxd4 {[%emt 0:00:31]} Qxe4 {[%emt 0:00:37] Strongly threatening ...Nd5.} (16... Nxe4 $2 17. d5 Qf5 18. dxc6 $18) 17. Bxf6 {[%emt 0:01:26]} gxf6 {[%emt 0:00:05]} 18. Qd2 {[%emt 0:14:28]} Qg6 {[%emt 0:01:52]} ({Better is} 18... Kh7 $1 $11) 19. Rac1 $14 {[%emt 0:02:55][%mdl 1024] White has compensation.} Rac8 {[%emt 0:08:41]} 20. Rc3 {[%emt 0:12:02]} Kh7 {[%emt 0:01:36]} 21. d5 $36 {[%emt 0:04:07][%mdl 2048] White has some pressure.} Ne5 {[%emt 0:02:29] [#]} (21... Rg8 $2 22. Nh4 Qg5 23. Qd3+ Kh8 24. dxc6 $18) (21... Nb4 $14) 22. Nh4 $1 $16 {[%emt 0:01:04]} Qg5 {[%emt 0:12:16]} 23. Qc2+ {[%emt 0:02:38]} f5 $2 {[%emt 0:00:38][%mdl 8192] Black cannot hold the game after this.} (23... Ng6 $16 24. Nxg6 Qxg6) 24. Nxf5 $18 {[%emt 0:02:36] Threatens to win with f4.} Ng6 {[%emt 0:00:22]} 25. h4 {[%emt 0:04:44][%cal Bh3h4,Bh4h5][%mdl 32]} ({Don't take} 25. Nxd6 Rcd8 $18) 25... Qf6 {[%emt 0:03:22]} (25... Qh5 26. f3 Rg8) 26. h5 {[%emt 0:03:12] White is clearly winning.} Nf4 {[%emt 0:00:23][%cal Of6c3] And now ...Qxc3! would win.} 27. Rf3 {[%emt 0:01:40]} Qg5 {[%emt 0:01:30][%csl Gf4][%cal Rg5g2]} 28. g3 {[%emt 0:00:37]} Ng6 {[%emt 0:04:13]} 29. hxg6+ {[%emt 0:02:15]} fxg6 {[%emt 0:00:09][%cal Rf8f5]} 30. Nh4 {[%emt 0:00:29] Re1 is the strong threat.} Rxf3 {[%emt 0:00:16]} 31. Nxf3 {[%emt 0:00:05]} Qxd5 {[%emt 0:00:03] [#]} 32. Re1 $1 {[%emt 0:00:54] Weighted Error Value: White=0.15 (very precise) /Black=0.42} 1-0

[Event "FRA-ch Teams Top 16-Haute 2022"]
[Site "Chartres"]
[Date "2022.06.19"]
[Round "11.15"]
[White "Papadiamandis, Elliot"]
[Black "Daulyte-Cornette, Deimante"]
[Result "1-0"]
[ECO "B30"]
[WhiteElo "2373"]
[BlackElo "2372"]
[Annotator "TA"]
[PlyCount "55"]
[EventDate "2022.06.16"]
[EventType "team-tourn"]
[EventCountry "FRA"]
[SourceTitle "playchess.com"]
[Source "ChessBase"]
[SourceQuality "1"]
[TimeControl "40/5400+30:1800+30"]

{[%evp 10,55,-5,0,6,17,27,16,26,30,25,28,33,25,36,36,31,39,54,53,64,18,29,24,21,0,35,47,57,68,130,141,162,162,229,235,361,364,950,517,693,694,689,683,863,858,825,799]} 1. e4 {[%emt 0:02:45]} c5 {[%emt 0:00:09]} 2. Nf3 {[%emt 0:00:16]} Nc6 {[%emt 0:00:08]} 3. Nc3 {[%emt 0:00:31]} g6 {[%emt 0:00:42]} 4. Bc4 {[%emt 0:00:25]} Bg7 {[%emt 0:01:04]} 5. O-O {[%emt 0:00:14]} d6 {[%emt 0:02:15]} 6. Re1 {[%emt 0:00:20]} e6 {[%emt 0:01:49] B30: Sicilian: 2...Nc6 3 Bb5, lines without ...g6.} 7. d4 {[%emt 0:00:40]} cxd4 {[%emt 0:03:04]} 8. Ne2 {[%emt 0:02:00][%cal Re2d4]} Nge7 {[%emt 0:05:30] The position is equal.} 9. Nexd4 {[%emt 0:00:37] [#]} O-O $146 {[%emt 0:02:12]} ({Predecessor:} 9... d5 10. exd5 Nxd5 11. Bxd5 Qxd5 12. Nxe6 Qxd1 13. Nxg7+ Kf8 14. Bh6 Qd8 15. Nh5+ Kg8 16. Re8+ {1-0 (16) Sousa,A (2405)-Cruz,J (2088) Almeirim 2017}) 10. c3 {[%emt 0:09:41]} Nxd4 {[%emt 0:02:55]} 11. Nxd4 {[%emt 0:03:19]} d5 {[%emt 0:01:32]} 12. exd5 {[%emt 0:01:51]} Nxd5 {[%emt 0:00:59]} 13. Qf3 {[%emt 0:06:15]} Nb6 {[%emt 0:25:32]} 14. Bb3 {[%emt 0:00:58]} e5 {[%emt 0:11:03]} 15. Nc2 {[%emt 0:06:48] 0x0.001e67b4f8bcdp-1022s more active pieces. The black rooks are badly placed.} (15. Nb5 $1 $14) 15... Qc7 {[%emt 0:03:44]} 16. Ne3 {[%emt 0:07:37][%cal Bc2e3,Be3g4,Bg4f6][%mdl 32]} Bd7 {[%emt 0:00:37]} 17. Ng4 {[%emt 0:05:22] Hoping for Nh6+.} Bc6 {[%emt 0:06:14]} (17... Kh8 $5 {[%cal Rf7f5]}) 18. Qg3 {[%emt 0:03:12][%cal Rg4e5]} Rae8 {[%emt 0:00:12]} 19. Be3 {[%emt 0:08:08]} Qe7 {[%emt 0:10:30] Inhibits Qh4.} (19... Nd5 $14) 20. h4 $1 $16 {[%emt 0:08:50]} Kh8 {[%emt 0:01:42] [#]} 21. Bg5 $1 {[%emt 0:02:15][%cal Be3g5,Bg5f6,Bf6g7][%mdl 32]} Qc7 {[%emt 0:04:43]} (21... f6 $142 22. Rxe5 Qd7) 22. Nf6 $18 {[%emt 0:04:26]} Rc8 {[%emt 0:01:38]} (22... h5 {was worth a try.} 23. Nxe8 Bxe8) 23. h5 {[%emt 0:01:02][%cal Of6h7] aiming for Nxh7!} (23. Rxe5 Rcd8 24. Ng4 f5 $16) ({And not} 23. Qxe5 Qxe5 24. Rxe5 h6 $17) 23... gxh5 $2 {[%emt 0:00:53]} (23... h6 24. Qh3 Bxg2 25. Kxg2 Qc6+ 26. Kh2 (26. Ne4 f5 $16) 26... Bxf6 27. Bxh6 Bg7) 24. Rxe5 {[%emt 0:03:38][%cal Og3d3] Threatening mate with Qd3! White is clearly winning.} Nd7 {[%emt 0:01:25] [#]} 25. Qd3 $1 {[%emt 0:02:38][%csl Gf6][%cal Rd3h7]} Nxf6 {[%emt 0:00:41]} 26. Bxf6 {[%emt 0:00:20][%cal Ob3c2] Intending Bc2! and mate.} Qd7 {[%emt 0:02:31] [#]} 27. Rd5 {[%emt 0:00:31][%mdl 512]} Qxd5 {[%emt 0:03:06]} 28. Bxg7+ {[%emt 0:00:11] Weighted Error Value: White=0.20 (precise) /Black=0.33} 1-0

[Event "FRA-ch Teams Top 16-Haute 2022"]
[Site "Chartres"]
[Date "2022.06.19"]
[Round "11.16"]
[White "Martsynovskaya, Marina"]
[Black "Burri, Quentin"]
[Result "0-1"]
[ECO "B56"]
[WhiteElo "2070"]
[BlackElo "2401"]
[Annotator "TA"]
[PlyCount "60"]
[EventDate "2022.06.16"]
[EventType "team-tourn"]
[EventCountry "FRA"]
[SourceTitle "playchess.com"]
[Source "ChessBase"]
[SourceQuality "1"]
[TimeControl "40/5400+30:1800+30"]

{[%evp 20,60,-20,-27,-7,-6,-27,-25,-45,-46,-10,-51,-55,-57,-58,-75,-65,-79,-65,-454,-462,-452,-444,-462,-464,-443,-348,-360,-347,-1830,-1788,-2008,-1907,-1802,-1724,-29983,-29984,-29984,-29979,-29968,-6470,-29998,-29999]} 1. e4 {[%emt 0:00:01]} c5 {[%emt 0:00:06]} 2. Nf3 {[%emt 0:00:31]} d6 {[%emt 0:00:05]} 3. d4 {[%emt 0:00:15]} cxd4 {[%emt 0:00:06]} 4. Nxd4 {[%emt 0:00:06]} Nf6 {[%emt 0:00:04]} 5. Nc3 {[%emt 0:00:12]} Nc6 {[%emt 0:00:06]} 6. Be3 {[%emt 0:03:06]} Ng4 {[%emt 0:00:44]} 7. Bg5 {[%emt 0:00:10]} h6 {[%emt 0:00:29]} 8. Bh4 {[%emt 0:00:06]} g5 {[%emt 0:00:07]} 9. Bg3 {[%emt 1:30:33]} Bg7 {[%emt 0:00:05]} 10. Nb3 {[%emt 0:00:00]} Bxc3+ {[%emt 0:04:53]} 11. bxc3 {[%emt 0:00:00]} Nge5 {[%emt 0:00:47] B56: Classical Sicilian: Unusual Lines.} (11... Nf6 $5 {[%cal Rf6e4]}) 12. h4 {[%emt 0:00:00]} Rg8 {[%emt 0:05:30] [#]} 13. hxg5 $146 {[%emt 0:00:00]} ({Predecessor:} 13. Qd2 a6 14. hxg5 hxg5 15. Rh5 g4 16. O-O-O Be6 17. Kb1 Qb6 18. Ka1 Rc8 19. Rb1 {0-1 (53) Kytoniemi,J (2220)-Lassila,E (2190) Finland 1996}) 13... hxg5 {[%emt 0:02:56] Black has an edge.} 14. Qd2 {[%emt 0:00:00]} Qb6 {[%emt 0:13:57]} 15. f3 {[%emt 0:00:00]} (15. a4 $5 {[%cal Rh1h5]}) 15... Be6 {[%emt 0:01:22][%cal Bc8e6,Be6c4,Bc4f1,Bf1a6][%mdl 32]} 16. Bf2 {[%emt 0:00:00]} Qc7 {[%emt 0:00:31]} 17. Nd4 {[%emt 0:00:00]} Bc4 {[%emt 0:05:28] Black is more active.} 18. Rh5 {[%emt 0:00:00]} Bxf1 {[%emt 0:12:22]} (18... O-O-O $5 {[%cal Rg8h8]} 19. Nxc6 Qxc6 20. Bxc4 Nxc4 $15) 19. Rxg5 {[%emt 0:00:00][%mdl 8192] White does not recover from this.} (19. Kxf1 $15 Nc4 20. Qe1) 19... Rxg5 $19 {[%emt 0:05:19]} 20. Qxg5 {[%emt 0:00:00]} Ba6 {[%emt 0:00:37] Threatens to win with ...Qa5.} ({Wrong is} 20... Nxd4 $2 21. Bxd4 Qc4 22. Qd2 $19) 21. Qg8+ {[%emt 0:00:00]} Kd7 {[%emt 0:00:15]} 22. Qxa8 {[%emt 0:00:00] [#] Black must now prevent Nb3.} Na5 {[%emt 0:00:09]} 23. Ne2 {[%emt 0:00:00]} ({Don't play} 23. Kd2 Nac4+ 24. Kd1 Nb2+ 25. Kd2 (25. Kc1 {is a self mate.} Qxc3 26. Bh4 Ned3+ 27. Kb1 Nc4) 25... Nec4+ 26. Kc1 Qa5 $19) 23... Qc4 {[%emt 0:03:49][%csl Ga6][%cal Rc4e2]} 24. O-O-O $2 {[%emt 0:00:00]} (24. Kf1 Qxe2+ 25. Kg1) 24... Qxa2 {[%emt 0:02:28]} 25. Kd2 {[%emt 0:00:00]} Nb3+ {[%emt 0:01:20][%mdl 64] [#] Deflection. Pair of Knights!} 26. Ke3 {[%emt 0:00:00]} Qxc2 {[%emt 0:00:28]} 27. Nd4 {[%emt 0:00:00]} Qxd1 {[%emt 0:00:41][%cal Rd1c1]} 28. Kf4 {[%emt 0:00:00]} Qd2+ {[%emt 0:02:11]} 29. Kg3 {[%emt 0:00:00]} Nd3 {[%emt 0:00:46] ( -> ...Qf4+)} 30. Nxb3 {[%emt 0:00:00]} Qf4+ {[%emt 0:00:21] Weighted Error Value: White=1.29/Black=0.10 (very precise)} 0-1

[Event "FRA-ch Teams Top 16-Haute 2022"]
[Site "Chartres"]
[Date "2022.06.19"]
[Round "11.17"]
[White "Van Foreest, Jorden"]
[Black "Jones, Gawain C B"]
[Result "1-0"]
[ECO "E81"]
[WhiteElo "2715"]
[BlackElo "2669"]
[Annotator "TA"]
[PlyCount "87"]
[EventDate "2022.06.16"]
[EventType "team-tourn"]
[EventCountry "FRA"]
[SourceTitle "playchess.com"]
[Source "ChessBase"]
[SourceQuality "1"]
[TimeControl "40/5400+30:1800+30"]

{[%evp 18,87,16,16,15,18,7,18,20,22,10,18,50,43,51,44,41,45,122,129,127,125,125,128,724,712,668,596,1251,1202,2355,2264,29958,12445,5193,6079,6269,6187,5373,5205,29971,29971,29974,29975,29976,29977,29977,29978,29978,29979,29978,29976,29976,29977,29977,29978,29978,29979,29979,29980,29980,29981,29981,29982,29982,29983,29983,29984,29984,29985,29985,29986]} 1. d4 {[%emt 0:00:02]} Nf6 {[%emt 0:03:32]} 2. c4 {[%emt 0:00:15]} g6 {[%emt 0:00:16]} 3. Nc3 {[%emt 0:00:11]} Bg7 {[%emt 0:00:06]} 4. e4 {[%emt 0:00:13]} d6 {[%emt 0:00:08]} 5. f3 {[%emt 0:00:29]} O-O {[%emt 0:00:12]} 6. Be3 {[%emt 0:00:07]} c5 {[%emt 0:00:15]} 7. dxc5 {[%emt 0:01:30]} dxc5 {[%emt 0:00:07]} 8. Qxd8 {[%emt 0:00:14]} Rxd8 {[%emt 0:00:06]} 9. Bxc5 {[%emt 0:00:08]} Nc6 {[%emt 0:00:09]} 10. Rd1 {[%emt 0:00:48]} Rxd1+ {[%emt 0:07:34] E81: King's Indian: Sämisch: 6th move deviations (including 6 Be3 c6).} 11. Kxd1 {[%emt 0:01:22] 11.Kxd1 is better than 11.Nxd1.} Nd7 {[%emt 0:01:25]} 12. Bf2 {[%emt 0:00:34]} Bxc3 {[%emt 0:03:46] The position is equal.} 13. bxc3 {[%emt 0:00:09]} Nde5 {[%emt 0:00:13]} 14. Ne2 {[%emt 0:01:03] [#]} f5 $146 {[%emt 0:17:53]} ({Predecessor:} 14... Be6 15. Nd4 Bxc4 16. Nxc6 bxc6 17. Bg3 Rd8+ 18. Kc2 Bxf1 19. Rxf1 Nc4 20. Bf4 e5 {½-½ (43) L'Ami,E (2621)-Efimenko,Z (2597) Germany 2022}) 15. exf5 {[%emt 0:10:59]} Bxf5 {[%emt 0:06:02]} 16. Nd4 $1 {[%emt 0:06:05]} Rd8 {[%emt 0:04:58][%cal Oe5f3]} 17. Kc1 {[%emt 0:01:11]} Nd3+ {[%emt 0:05:57]} (17... Bd3 $14) 18. Bxd3 $16 {[%emt 0:00:11]} Bxd3 {[%emt 0:00:05]} 19. Nxc6 {[%emt 0:02:34]} bxc6 {[%emt 0:00:06][%mdl 4096] Endgame KRB-KRB} 20. Rd1 {[%emt 0:00:15]} ({But not} 20. Bxa7 $6 Ra8 21. Rd1 Rxa7 22. Rxd3 Rxa2 $14) 20... a6 $2 {[%emt 0:03:23][%mdl 8192] [#] This move loses the game for Black.} (20... e5 $16) 21. Rxd3 $1 $18 {[%emt 0:06:29][%mdl 512]} Rxd3 {[%emt 0:00:22] KR-KB} 22. Bd4 $1 {[%emt 0:00:03]} e5 {[%emt 0:04:54]} 23. Kc2 {[%emt 0:00:28]} Rxd4 {[%emt 0:00:29]} 24. cxd4 {[%emt 0:00:05]} exd4 {[%emt 0:00:05] [#] KP-KP} 25. c5 $1 {[%emt 0:00:05] White wants to mate with Kd3.} ({Weaker is} 25. Kd3 c5 $11) 25... Kf7 {[%emt 0:00:38]} 26. Kd3 {[%emt 0:00:05]} Ke6 {[%emt 0:00:19]} 27. Kxd4 {[%emt 0:00:07] White threatens Ke4 and mate.} Kf5 {[%emt 0:00:03]} 28. g3 {[%emt 0:02:19]} a5 {[%emt 0:10:05]} 29. h4 {[%emt 0:06:15] White mates.} h6 {[%emt 0:15:34]} 30. a3 {[%emt 0:00:25]} a4 {[%emt 0:01:00]} 31. Kc3 {[%emt 0:00:48]} Ke6 {[%emt 0:08:03]} 32. Kb4 {[%emt 0:00:06]} Kd5 {[%emt 0:00:04]} 33. Kxa4 {[%emt 0:00:50]} Kxc5 {[%emt 0:04:29]} 34. Kb3 {[%emt 0:00:33]} Kd4 {[%emt 0:00:24]} 35. a4 {[%emt 0:00:39]} Kd3 {[%emt 0:02:31]} 36. a5 {[%emt 0:00:10]} c5 {[%emt 0:00:04]} 37. a6 {[%emt 0:00:02]} c4+ {[%emt 0:00:04]} 38. Kb4 {[%emt 0:00:08]} c3 {[%emt 0:00:07]} 39. a7 {[%emt 0:00:02]} c2 {[%emt 0:00:06]} 40. a8=Q {[%emt 0:00:03]} c1=Q {[%emt 0:00:00]} 41. Qe4+ {[%emt 0:29:39]} Kd2 {[%emt 0:29:47]} 42. Qf4+ {[%emt 0:00:02]} Kd1 {[%emt 0:00:12] [#]} 43. Qxc1+ $1 {[%emt 0:00:05]} Kxc1 {[%emt 0:00:04]} 44. h5 {[%emt 0:00:26] Weighted Error Value: White=0.00 (flawless) /Black=0.67} 1-0

[Event "FRA-ch Teams Top 16-Haute 2022"]
[Site "Chartres"]
[Date "2022.06.19"]
[Round "11.18"]
[White "Korobov, Anton"]
[Black "Amin, Bassem"]
[Result "1/2-1/2"]
[ECO "A28"]
[WhiteElo "2671"]
[BlackElo "2686"]
[Annotator "TA"]
[PlyCount "89"]
[EventDate "2022.06.16"]
[EventType "team-tourn"]
[EventCountry "FRA"]
[SourceTitle "playchess.com"]
[Source "ChessBase"]
[SourceQuality "1"]
[TimeControl "40/5400+30:1800+30"]

{[%evp 13,89,-11,8,0,0,0,0,-3,6,0,4,0,-1,-15,0,-32,-30,-52,-26,-32,-35,-35,-50,-43,-8,-53,-43,-50,-34,-37,0,0,-9,-41,-30,-19,-30,-11,-13,-27,-22,-21,-24,-35,-35,-55,-16,-19,-14,-21,-28,-28,-22,-24,-24,-20,0,0,0,0,0,0,0,-11,0,0,0,0,0,0,0,-8,-8,-9,-6,-33,-26,-27]} 1. c4 {[%emt 0:00:00]} Nf6 {[%emt 0:02:25]} 2. Nc3 {[%emt 0:00:12]} e5 {[%emt 0:05:12]} 3. Nf3 {[%emt 0:00:24]} Nc6 {[%emt 0:00:09]} 4. e3 {[%emt 0:00:30]} Bb4 {[%emt 0:04:24]} 5. Qc2 {[%emt 0:00:37]} O-O {[%emt 0:02:31]} 6. Nd5 {[%emt 0:03:45]} Re8 {[%emt 0:00:35]} 7. a3 {[%emt 0:01:08]} Bf8 {[%emt 0:01:49]} 8. Ng5 {[%emt 0:06:23] [#] Threatening mate with Nxf6+. A28: English Opening: Four Knights Variation.} g6 {[%emt 0:00:21] White must now prevent ...Nxd5.} 9. Nxf6+ {[%emt 0:00:32]} Qxf6 {[%emt 1:17:34]} 10. h4 {[%emt 0:00:25] The position is equal.} d6 {[%emt 0:00:00]} 11. Ne4 {[%emt 0:01:44]} Qd8 {[%emt 0:00:00] [#]} 12. b3 $146 {[%emt 0:02:25]} ({Predecessor:} 12. h5 Bg7 13. hxg6 hxg6 14. d3 d5 15. cxd5 Qxd5 16. Be2 Qd8 17. Bd2 Be6 18. g4 {1-0 (37) Kovalenko,I (2684)-Berzinsh,R (2408) Tallinn 2017}) 12... Bg7 {[%emt 0:00:00]} 13. Bb2 {[%emt 0:01:42]} f5 {[%emt 0:00:00]} 14. Nc3 {[%emt 0:01:05] [#]} Nd4 $1 {[%emt 0:00:00]} 15. Qd1 {[%emt 0:02:30]} (15. exd4 exd4+) 15... c6 {[%emt 0:00:00]} 16. h5 {[%emt 0:13:59]} Ne6 {[%emt 0:00:00]} 17. hxg6 {[%emt 0:11:04]} hxg6 {[%emt 0:00:00]} 18. b4 {[%emt 0:04:27]} a5 {[%emt 0:00:00]} 19. Qb3 {[%emt 0:04:48]} axb4 {[%emt 0:00:00]} 20. axb4 {[%emt 0:00:05]} Rxa1+ {[%emt 0:00:00]} 21. Bxa1 {[%emt 0:00:04]} Nc7 {[%emt 0:00:00]} 22. b5 {[%emt 0:06:55]} Be6 {[%emt 0:00:00]} 23. bxc6 {[%emt 0:02:09]} bxc6 {[%emt 0:00:00]} 24. Qb6 {[%emt 0:01:14] Inhibits Na6.} Qd7 {[%emt 0:00:00]} 25. Be2 {[%emt 0:03:43]} Na8 {[%emt 0:00:00]} 26. Qb1 {[%emt 0:06:44]} Qc7 {[%emt 0:00:00]} 27. g4 {[%emt 0:02:33]} Rb8 {[%emt 0:00:00]} 28. Qc2 {[%emt 0:00:54]} Qa5 {[%emt 0:00:00]} 29. Bb2 {[%emt 0:01:27]} Qb4 {[%emt 0:00:00]} 30. Nd1 {[%emt 0:03:27]} Qb3 {[%emt 0:00:00]} 31. Qxb3 {[%emt 0:00:43]} Rxb3 {[%emt 0:00:00]} 32. gxf5 {[%emt 0:00:12]} Bxf5 {[%emt 0:00:00]} 33. Bc3 {[%emt 0:03:32]} Nb6 {[%emt 0:00:00]} 34. f3 {[%emt 0:03:53]} Be6 {[%emt 0:02:38]} 35. Rg1 {[%emt 0:00:36]} Kf7 {[%emt 0:03:45]} ({Don't play} 35... Nxc4 36. Rxg6 Bf7 37. Bxc4 Bxc4 38. Nb2 $16 (38. Rxd6 Rb1 $11)) 36. Bd3 {[%emt 0:00:40]} Bf5 {[%emt 0:01:23]} ({Don't do} 36... Bxc4 37. Bxg6+ Kf8 38. Bc2 $14) 37. e4 {[%emt 0:01:08]} Be6 {[%emt 0:00:10]} 38. Ne3 {[%emt 0:01:26]} Bh6 {[%emt 0:02:20] Hoping for ...Bxe3.} 39. Ng4 {[%emt 0:00:10]} Bf4 {[%emt 0:02:18]} 40. c5 {[%emt 0:00:07]} Bxg4 {[%emt 0:02:56]} 41. Rxg4 {[%emt 0:37:27]} dxc5 {[%emt 0:29:33]} 42. Ke2 {[%emt 0:00:45]} Ra3 {[%emt 0:00:00]} 43. Rg1 {[%emt 0:00:00]} Na4 {[%emt 0:00:00]} 44. Bc4+ {[%emt 0:00:00]} Kf6 {[%emt 0:00:00]} 45. Rc1 {[%emt 0:00:00] Weighted Error Value: White=0.06 (flawless) /Black=0.06 (flawless)} 1/2-1/2